{"text_format":"1","workbook":"xlsx","n_sheets":9,"sheets":["説明","評価チェックシート","チェック結果シート","簡易チェックシート","簡易チェック結果シート","様式2-1チェック箇所","様式2-2チェック箇所","様式2-3チェック箇所","様式3チェック箇所"],"not_rendered":{"charts":2,"images":0,"macros":1,"external_links":0,"defined_names":8,"comments":2,"pivot_tables":0},"unopened":[],"bounds":{"document_bytes":16777216,"sheet_cells":100000,"rows_first":2000,"rows_last":500,"rows_between":2000,"halvings":0,"cell_chars":16384,"cell_head_chars":4096},"cells_cut":0,"cells_raw":0,"read":"whole","date_system":"1900"}

{"sheet":"説明","index":0,"n_rows":32,"n_cols":2,"rows_kept":32,"cut":false,"hidden":false,"merged":[]}
["「サービス等利用計画評価チェックシート（札幌版）」の使い方"]
[]
["■評価チェックシートの目的"]
[]
[null,"\n　このシートは、平成24年度障害者総合福祉推進事業「サービス等利用計画の評価指標に関する調査研究事業」の一環として、平成24年4月から新たに作成される計画が、ケアマネジメントプロセスを踏まえたうえで障害者の地域生活支援の一層の推進に向けて、「利用者に寄り添い、希望する生活を実現する手助けをする計画」として一定の質を確保できているか、粗製乱造に陥っていないか、相談支援事業者は常に自己チェックを行う必要性と、あわせて、相談支援体制の整備を進める市町村・地域自立支援協議会も総合的な視点から計画を評価し、必要に応じて次によりよい計画を作成できるよう事業者に助言・指導する必要性から、全国の相談支援事業の現場でサービス等利用計画の作成を担当し、かつ相談支援体制を整備する地域自立支援協議会の中核メンバーとして活動する相談支援専門員の職能団体という日本相談支援専門員協会の特性を生かし、全国でサービス等利用計画が円滑に作成され、また、その計画の水準を一定に保つことができるよう、相談支援事業者、市町村・地域自立支援協議会がそれぞれの立場から計画を評価するための具体的な指標、評価内容、体制等を提示することを目的に作成されました。\n　\n"]
[]
[]
["■評価チェックシート活用の視点とチェックの進め方"]
[]
[null,"　サービス等利用計画は、障害者の現在の生活の状況等に関する基本情報や個別のアセスメントから導き出された一つ一つの生活課題（ニーズ）を解決し、「こうやって生活したい」「こんなことをやってみたい」という利用者が希望する生活を実現していくために、具体的な手段を示しながら一歩ずつ解決していくための計画を表したものです。平成22年度障害者総合福祉推進事業『相談支援ガイドライン』、平成23年度障害者総合福祉推進事業『サービス等利用計画サポートブック』も参考にしながら、ケアマネジメントの理念、理論、技術等を考慮し回答欄に記入してください。"]
[]
["■ファイル操作上の留意点"]
[]
[null,"「評価チェックシート」のピンクで網掛けをしたセルを入力してください。「チェック結果シート」の入力が完了すると「評価チェックシート」に自動的に数値等が入ります。"]
[]
[null,"はじめに「評価チェックシート」の利用者氏名、計画作成者、事業所名、評価日を入力してください。「チェック結果シート」にはこれらの情報は自動的に反映されます。"]
[]
[null,"チェック項目ごとに、チェックポイントを読みながらサービス等利用計画を評価し、1～3のいずれかの数字を入力してください。（1：十分できている　2：できている　3：できていない、書面だけでは評価不可能）"]
[null,"回答欄のセルには、1～3の数値しか入力できません。1～3以外を入力してReturn keyを押した場合、エラーが出ます。"]
[]
[null,"次の場合は計算不能となりますので、「チェック結果シート」が正しく表示されません。"]
[null,"　*シート名を変更した場合"]
[null,"　*シート・行・列を挿入・削除した場合。"]
[null,"　*未回答箇所がある場合。"]
[]
[null,"通常のエクセルシートと同じですので、回答途中で保存すれば、その状態で保存されます。再開して全回答欄入力すると結果が表示されます。(セキュリティの関係でスコアが出ないときはオプションをクリックしてコンテンツを有効に切り替えてください）"]
[]
["■このシートの著作権について"]
[]
[null,"元のシートは、平成24年度障害者総合福祉推進事業「サービス等利用計画の評価指標に関する調査研究事業」の一環として作成したものを、特定非営利活動法人日本相談支援専門員協会が普及を図るものです。\nそのシートの目的にそって、札幌市におけるサービス等利用計画の検証に活用してもらえるよう改良を加えたのが、このシートになります。多くの機関に活用していただきたいと考えていますが、サービス等利用計画評価以外の目的（研修会、調査研究等）でこのシートの項目を活用される場合には、事前に下記までご一報下さい。"]
[]
[null,"札幌市保健福祉局障がい保健福祉部障がい福祉課　就労・相談支援担当係\n\n札幌市中央区北1条西2丁目　札幌市役所\n011-211-2936"]

{"sheet":"評価チェックシート","index":1,"n_rows":45,"n_cols":15,"rows_kept":45,"cut":false,"hidden":false,"merged":[]}
["サービス等利用計画評価チェックシート（札幌版）"]
[]
["利用者氏名："]
["計画作成者："]
["事業所名："]
["チェック機関："]
["評価日"]
[null,null,null,null,null,null,null,null,null,null,null,"計算列",1,2,3]
[null,"チェック項目",null,null,null,"チェックポイント","札幌版様式チェック箇所",null,"回答",null,null,null,1,0.6,0]
[null,1,"エンパワメント、アドボカシーの視点",null,null,null,null,null,null,null,null,{"$f":"SUM(L11:L15)/ROWS(L11:L15)","v":0}]
[null,null,null,"①","本人の思い・希望の尊重","「こうやって生活したい」「こんなことをやってみたい」という本人の思い・願いができるだけ具体的な言葉を使って表現されているか。\nこれを踏まえて本人が希望する生活の全体像が記載されているか。\n本人の意向を汲み取ることが難しい場合、本人の意思伝達・意思確認手段がきちんと記載されているか。","2-1①②\n2-2②\n2-3③",null,null,null,null,{"$f":"IF(ISNA(HLOOKUP(I11,$M$8:$O$9,2,FALSE))=TRUE,\"\",HLOOKUP(I11,$M$8:$O$9,2,FALSE))","v":""}]
[null,null,null,"②","本人の強み（ストレングス）への着眼","本人が持っている力、強み、できること等が、潜在的なものも含めて評価され、前向きな言葉や表現で記載されているか。\n「…できない」といったマイナスの言葉、表現で埋め尽くされていないか。","2-1①\n2-2①⑤\n",null,null,null,null,{"$f":"IF(ISNA(HLOOKUP(I12,$M$8:$O$9,2,FALSE))=TRUE,\"\",HLOOKUP(I12,$M$8:$O$9,2,FALSE))","v":""}]
[null,null,null,"③","本人が行うことの明確化","支援やサービスを受けながらも、全てを他に拠るのではなく、本人ができる（できそうな）役割をもつことが明確に記載されているか。","2-2⑤",null,null,null,null,{"$f":"IF(ISNA(HLOOKUP(I13,$M$8:$O$9,2,FALSE))=TRUE,\"\",HLOOKUP(I13,$M$8:$O$9,2,FALSE))","v":""}]
[null,null,null,"④","本人にとっての分かりやすさ","できるだけ本人の言葉や表現を使い、障害特性も考慮し、わかりやすく工夫された表現、本人の意欲を高め自分のこととして捉えられるような表現で記載されているか。","全ての項目\n（特に、2-1①～③、2-2①②⑤）",null,null,null,null,{"$f":"IF(ISNA(HLOOKUP(I14,$M$8:$O$9,2,FALSE))=TRUE,\"\",HLOOKUP(I14,$M$8:$O$9,2,FALSE))","v":""}]
[null,null,null,"⑤","目標設定の妥当性と権利擁護","本人の権利を擁護し、本人が試行錯誤して時には失敗から学ぶこと（トライアンドエラー）も視野に入れ、段階的に達成可能（スモールステップ）で本人の意欲を高めることができる具体的な目標が記載されているか。\n単なる努力目標、実効性や本人のペースを無視した過度な負担が生じる目標、達成困難な目標が記載されていないか。\n単なるサービス内容が目標として記載されていないか。","2-1①②\n2-2①②③⑤⑥\n2-3①～③",null,null,null,null,{"$f":"IF(ISNA(HLOOKUP(I15,$M$8:$O$9,2,FALSE))=TRUE,\"\",HLOOKUP(I15,$M$8:$O$9,2,FALSE))","v":""}]
[null,2,"総合的な生活支援の視点",null,null,null,null,null,null,null,null,{"$f":"SUM(L17:L21)/ROWS(L17:L21)","v":0}]
[null,null,null,"①","目指す生活の全体像の明示","最終的に到達すべき方向性、サービス提供によって実現する、本人が希望する生活の全体像が、総合的かつ具体的に記載されているか。（生活者に対する「総合支援」計画と読み取れるか）","2-3③",null,null,null,null,{"$f":"IF(ISNA(HLOOKUP(I17,$M$8:$O$9,2,FALSE))=TRUE,\"\",HLOOKUP(I17,$M$8:$O$9,2,FALSE))","v":""}]
[null,null,null,"②","障害福祉サービス利用に限定しない生活全体の考慮","生活する上でサービスの利用の必要性がない課題（ニーズ）についても網羅し、単にサービスを利用するためではなく、本人が希望する生活を実現するための課題を記載しているか。","2-2④\n2-3①②",null,null,null,null,{"$f":"IF(ISNA(HLOOKUP(I18,$M$8:$O$9,2,FALSE))=TRUE,\"\",HLOOKUP(I18,$M$8:$O$9,2,FALSE))","v":""}]
[null,null,null,"③","障害福祉以外のサービスやインフォーマルな支援の有無","障害福祉だけでなく、保健、医療、教育、就労、住宅、司法等の幅広い領域のサービス、及び公的支援（障害福祉サービス等）だけでなく、その他の支援（インフォーマルサービス）が、本人ニーズに基づき、必要に応じて記載されているか。\n記載されていない場合、その理由が明確にされているか。","2-2④⑥\n2-3①②",null,null,null,null,{"$f":"IF(ISNA(HLOOKUP(I19,$M$8:$O$9,2,FALSE))=TRUE,\"\",HLOOKUP(I19,$M$8:$O$9,2,FALSE))","v":""}]
[null,null,null,"④","１週間、１日の生活の流れの考慮","週間計画表の1週間、1日の生活の流れをみて、望む生活を可能とする支援（障害福祉サービス以外を含む）が網羅され、総合的に生活全体をイメージできる記載になっているか。\n本人による活動、家族による支援等も記載されているか。","2-3全ての項目",null,null,null,null,{"$f":"IF(ISNA(HLOOKUP(I20,$M$8:$O$9,2,FALSE))=TRUE,\"\",HLOOKUP(I20,$M$8:$O$9,2,FALSE))","v":""}]
[null,null,null,"⑤","ライフステージや将来像の意識","乳幼児期・学齢期・成人期それぞれのステージ間に切れめがないよう、これまでの支援方針や各種計画（保育の計画、個別の教育支援計画等）が活かされ、次のステージに向けたトータルプランとなっているか。\n単に過去のものを引き継ぐのではなく、将来を見通した総合的な計画になっているか。","2-1全ての項目",null,null,null,null,{"$f":"IF(ISNA(HLOOKUP(I21,$M$8:$O$9,2,FALSE))=TRUE,\"\",HLOOKUP(I21,$M$8:$O$9,2,FALSE))","v":""}]
[null,3,"連携・チーム支援の視点",null,null,null,null,null,null,null,null,{"$f":"SUM(L23:L27)/ROWS(L23:L27)","v":0}]
[null,null,null,"①","支援の方向性の明確化と共有","支援に関わる関係機関等が共通の理解をもって取り組めるよう、支援の方向性が、明確、かつ、具体的に記載されているか。\n解決すべき課題、支援目標、達成時期、サービス提供内容、本人の役割、評価時期等に整合性を持たせて記載されているか。","2-1全ての項目\n2-2全ての項目",null,null,null,null,{"$f":"IF(ISNA(HLOOKUP(I23,$M$8:$O$9,2,FALSE))=TRUE,\"\",HLOOKUP(I23,$M$8:$O$9,2,FALSE))","v":""}]
[null,null,null,"②","役割分担の明確化","相談支援専門員が多くの問題を一人で抱え込まずに、支援に関わる関係機関それぞれに役割を分担し、連携した取り組みができるよう、その内容が具体的に記載されているか。（チームによる「総合支援」計画と読み取れるか）\n関係機関が見て、自分の役割が分かりやすく体系的に記載されているか。相互連携のための連絡網が記載されているか。","2-2④⑤⑥\n2-3①②",null,null,null,null,{"$f":"IF(ISNA(HLOOKUP(I24,$M$8:$O$9,2,FALSE))=TRUE,\"\",HLOOKUP(I24,$M$8:$O$9,2,FALSE))","v":""}]
[null,null,null,"③","個別支援計画との関係","サービス提供事業所が個別支援計画を作成する上で、支援の方向性やサービス内容を決める際の基礎情報となることを意識して分かりやすく記載されているか。（抽象的で誰にでも当てはまるような内容になっていないか）\nサービス提供事業所が個別支援計画作成の参考にできる情報や事業所に対するメッセージが記載されているか。（単なるサービス内容だけでない、具体的な支援のポイント等が分かりやすく記載されているか）","2-1全ての項目\n2-2全ての項目\n3全ての項目",null,null,null,null,{"$f":"IF(ISNA(HLOOKUP(I25,$M$8:$O$9,2,FALSE))=TRUE,\"\",HLOOKUP(I25,$M$8:$O$9,2,FALSE))","v":""}]
[null,null,null,"④","サービス提供事業所の情報把握","サービス提供の内容、頻度、支援者としての意見等について、サービス提供事業所から聞き取り、記載されているか。","3①②④",null,null,null,null,{"$f":"IF(ISNA(HLOOKUP(I26,$M$8:$O$9,2,FALSE))=TRUE,\"\",HLOOKUP(I26,$M$8:$O$9,2,FALSE))","v":""}]
[null,null,null,"⑤","地域資源情報の把握","地域の社会資源を把握し、必要に応じて自立支援協議会、地域関係の中で連携可能な近隣住民や関係者等から意見を聞き取り、記載されているか。","2-2④⑥、2-3②\n3②④",null,null,null,null,{"$f":"IF(ISNA(HLOOKUP(I27,$M$8:$O$9,2,FALSE))=TRUE,\"\",HLOOKUP(I27,$M$8:$O$9,2,FALSE))","v":""}]
[null,4,"ニーズに基づく支援の視点",null,null,null,null,null,null,null,null,{"$f":"SUM(L29:L33)/ROWS(L29:L33)","v":0}]
[null,null,null,"①","本人のニーズ","本人の意向、希望する生活が具体的、かつ、的確に把握され、「～したい」「～なりたい」等、本人の言葉として表現され、記載されているか。\n本人が優先的に解決したいと思う課題や取り組みたいという意欲的な課題から優先する等、本人の意向を十分汲み取って記載されているか。\n本人の意向を汲み取ることが難しい場合、家族や支援者から十分な聞き取りをした結果が記載されているか。","2-1全ての項目\n2-2①⑤",null,null,null,null,{"$f":"IF(ISNA(HLOOKUP(I29,$M$8:$O$9,2,FALSE))=TRUE,\"\",HLOOKUP(I29,$M$8:$O$9,2,FALSE))","v":""}]
[null,null,null,"②","家族の意向","家族の意向を具体的に的確に把握し、記載されているか。\n本人の意向と明確に区別し、誰の意向かが分かるように明示して記載されているか。","2-1全ての項目\n2-2①②⑤⑥",null,null,null,null,{"$f":"IF(ISNA(HLOOKUP(I30,$M$8:$O$9,2,FALSE))=TRUE,\"\",HLOOKUP(I30,$M$8:$O$9,2,FALSE))","v":""}]
[null,null,null,"③","優先順位","本人が意欲を持ってすぐに取り組める課題、緊急である課題、本人の動機付けとなる課題、すぐに効果が見込まれる課題、悪循環を作りだす原因となっている課題、医師等の専門職からの課題等を関連付け、緊急性、重要性を考慮して、まず取り組むべき事項から適切に優先順位がつけられているか。","2-1②\n2-2①②③⑥",null,null,null,null,{"$f":"IF(ISNA(HLOOKUP(I31,$M$8:$O$9,2,FALSE))=TRUE,\"\",HLOOKUP(I31,$M$8:$O$9,2,FALSE))","v":""}]
[null,null,null,"④","項目間の整合性","本人のニーズを踏まえて作成された計画について、サービス、役割、評価時期などの項目は整合性が取れているか。","2-2全ての項目"]
[null,null,null,"⑤","相談支援専門員の総合的判断","相談支援専門員の専門職としての総合的判断（見立て）と本人の意向、ニーズが一致した記載となっているか。一致しない場合、その調整方法も記載されているか。\n本人の要望だけが記載されていたり、支援者側からの一方的な提案だけになっているといった、専門職としての判断のない記載となっていないか。","2-1全ての項目\n2-2①②⑤\n2-3③",null,null,null,null,{"$f":"IF(ISNA(HLOOKUP(I33,$M$8:$O$9,2,FALSE))=TRUE,\"\",HLOOKUP(I33,$M$8:$O$9,2,FALSE))","v":""}]
[null,5,"中立・公平性の視点",null,null,null,null,null,null,null,null,{"$f":"SUM(L35:L39)/ROWS(L35:L39)","v":0}]
[null,null,null,"①","サービス提供法人の偏り","サービス提供法人が特定の法人（特に相談支援事業所の運営法人）に偏っていないか。偏っている場合、その理由が明確にされているか。","2-2④\n2-3①②",null,null,null,null,{"$f":"IF(ISNA(HLOOKUP(I35,$M$8:$O$9,2,FALSE))=TRUE,\"\",HLOOKUP(I35,$M$8:$O$9,2,FALSE))","v":""}]
[null,null,null,"②","本人ニーズとの比較","本人ニーズや生活実態に合わせた適正な計画となっているか。サービスが過大、過小な計画になっていないか。","2-1全ての項目、2-2①④、2-3①②",null,null,null,null,{"$f":"IF(ISNA(HLOOKUP(I36,$M$8:$O$9,2,FALSE))=TRUE,\"\",HLOOKUP(I36,$M$8:$O$9,2,FALSE))","v":""}]
[null,null,null,"③","同じような障害者との比較","同じような障害、同じようなサービスを必要とする障害者と比較して、過大、過小な計画となっていないか。なっている場合にそうなった合理的理由を明確に記載しているか。","2-2②③④\n2-3①②",null,null,null,null,{"$f":"IF(ISNA(HLOOKUP(I37,$M$8:$O$9,2,FALSE))=TRUE,\"\",HLOOKUP(I37,$M$8:$O$9,2,FALSE))","v":""}]
[null,null,null,"④","地域資源との比較","本人ニーズに基づいた地域支援の活用であることがきちんと説明できているか。\n選択できる地域資源があるにも関わらず、既存のサービス提供事業所での継続利用だけの計画になっていないか。","2-2④⑥、2-3①②\n3④",null,null,null,null,{"$f":"IF(ISNA(HLOOKUP(I38,$M$8:$O$9,2,FALSE))=TRUE,\"\",HLOOKUP(I38,$M$8:$O$9,2,FALSE))","v":""}]
[null,null,null,"⑤","支給決定基準の参照","行政の支給決定基準に合わせた機械的な計画になっていないか。","2-2④、2-3①②、3④",null,null,null,null,{"$f":"IF(ISNA(HLOOKUP(I39,$M$8:$O$9,2,FALSE))=TRUE,\"\",HLOOKUP(I39,$M$8:$O$9,2,FALSE))","v":""}]
[null,6,"生活の質の向上の視点",null,null,null,null,null,null,null,null,{"$f":"SUM(L41:L45)/ROWS(L41:L45)","v":0}]
[null,null,null,"①","サービス提供状況","サービス等利用計画通りにサービスが提供されたか、事業者として本人の生活の変化をどう捉えているかについてサービス提供事業所に聞き取った結果が記載されているか。\nその聞き取りは「いつ」「誰に」「どのように」実施したかが記載されているか。","3②④",null,null,null,null,{"$f":"IF(ISNA(HLOOKUP(I41,$M$8:$O$9,2,FALSE))=TRUE,\"\",HLOOKUP(I41,$M$8:$O$9,2,FALSE))","v":""}]
[null,null,null,"②","本人の感想・満足度","本人がサービスの内容や事業所等について満足しているか、不満や改善してほしいことはないかについて聞き取った結果が記載されているか。\nその聞き取りは「いつ」「誰に」「どのように」実施したかが記載されているか。","3③④",null,null,null,null,{"$f":"IF(ISNA(HLOOKUP(I42,$M$8:$O$9,2,FALSE))=TRUE,\"\",HLOOKUP(I42,$M$8:$O$9,2,FALSE))","v":""}]
[null,null,null,"③","支援目標の達成度","サービス等利用計画通りにサービスが提供され、どの程度まで支援目標で掲げた状態に近づいたかについて検討した結果が記載されているか。\nその検討は、「いつ」「誰と」「どのように」実施したかが記載されているか。（本人・家族・事業所への聞き取り、個別支援計画の確認、サービス等調整会議の開催等）","3①④",null,null,null,null,{"$f":"IF(ISNA(HLOOKUP(I43,$M$8:$O$9,2,FALSE))=TRUE,\"\",HLOOKUP(I43,$M$8:$O$9,2,FALSE))","v":""}]
[null,null,null,"④","計画の連続性","本人ニーズ、関係機関の支援、ライフステージ等に変化がないか確認した結果が記載されているか。\n未達成の支援目標、新たな課題への対応について検討し、必要に応じて計画の変更を行った結果の概要が記載されているか。（計画変更した場合は変更理由、具体的なサービス種類・量・週間計画の変更内容。変更しなかった場合はその理由）\n上記の確認・検討は、「いつ」「誰と」「どのように」実施したかが記載されているか。（本人・家族・事業所への聞き取り、個別支援計画の確認、サービス等調整会議の開催等）","3①④",null,null,null,null,{"$f":"IF(ISNA(HLOOKUP(I44,$M$8:$O$9,2,FALSE))=TRUE,\"\",HLOOKUP(I44,$M$8:$O$9,2,FALSE))","v":""}]
[null,null,null,"⑤","全体の状況","モニタリング会議での総合的判断を反映し、全体の状況を的確に把握した上で、今後の方向性が記載されているか。","3①",null,null,null,null,{"$f":"IF(ISNA(HLOOKUP(I45,$M$8:$O$9,2,FALSE))=TRUE,\"\",HLOOKUP(I45,$M$8:$O$9,2,FALSE))","v":""}]

{"sheet":"チェック結果シート","index":2,"n_rows":39,"n_cols":5,"rows_kept":39,"cut":false,"hidden":false,"merged":[]}
["サービス等利用計画評価表"]
[]
["利用者氏名：",null,{"$f":"評価チェックシート!E3","v":0}]
["計画作成者：",null,{"$f":"評価チェックシート!E4","v":0}]
["チェック機関：",null,{"$f":"評価チェックシート!E5","v":0}]
["評価日：",null,{"$f":"評価チェックシート!E6","v":0}]
[]
[null,null,null,"満点","チェック結果"]
[1,"エンパワメント、アドボカシーの視点",null,5,{"$f":"D9*評価チェックシート!L10","v":0}]
[2,"総合的な生活支援の視点",null,5,{"$f":"D10*評価チェックシート!L16","v":0}]
[3,"連携・チーム支援の視点",null,5,{"$f":"D11*評価チェックシート!L22","v":0}]
[4,"ニーズに基づく支援の視点",null,5,{"$f":"D12*評価チェックシート!L28","v":0}]
[5,"中立・公平性の視点",null,5,{"$f":"D13*評価チェックシート!L34","v":0}]
[6,"生活の質の向上の視点",null,5,{"$f":"D14*評価チェックシート!L40","v":0}]
[]
[]
[]
[]
[]
[]
[]
[]
[]
[]
[]
[]
[]
[]
[]
[]
[]
[]
[null,null,null,"本番リンク"]
[null,null,"Ⅰ.個別ケース対応"]
[null,null,"Ⅱ.地域デザイン"]
[null,null,"Ⅲ.事業所運営"]
[null,null,"Ⅰ-1インテーク",{"$f":"E9","v":0}]
[null,null,"Ⅰ-2アセスメント",{"$f":"E10","v":0}]
[null,null,"Ⅰ-3個別支援会議の\n開催",{"$f":"E11","v":0}]

{"sheet":"簡易チェックシート","index":3,"n_rows":45,"n_cols":16,"rows_kept":45,"cut":false,"hidden":false,"merged":[]}
["サービス等利用計画評価チェックシート（札幌版簡素化）"]
[]
["利用者氏名："]
["計画作成者："]
["事業所名："]
["チェック機関："]
["評価日"]
[null,null,null,null,null,null,null,null,null,null,"計算列",1,2,3]
[null,"チェック項目",null,null,null,"札幌版様式チェック箇所",null,"今回",null,null,null,1,0.6,0,"前回（　/　）\n実施結果","前々回（　/　）\n実施結果"]
[null,1,"エンパワメント、アドボカシーの視点",null,null,null,null,null,null,null,{"$f":"SUM(K11:K15)/ROWS(K11:K15)","v":0}]
[null,null,null,"①","「○○したい」と本人の言葉で、希望する生活の全体像が書いてある","2-1①②\n2-2②\n2-3③",null,null,null,null,{"$f":"IF(ISNA(HLOOKUP(H11,$L$8:$N$9,2,FALSE))=TRUE,\"\",HLOOKUP(H11,$L$8:$N$9,2,FALSE))","v":""}]
[null,null,null,"②","本人の強みを捉えて、前向きに表現している","2-1①\n2-2①⑤\n",null,null,null,null,{"$f":"IF(ISNA(HLOOKUP(H12,$L$8:$N$9,2,FALSE))=TRUE,\"\",HLOOKUP(H12,$L$8:$N$9,2,FALSE))","v":""}]
[null,null,null,"③","全てをサービスなどに頼るのではなく、本人の役割も書かれている","2-2⑤",null,null,null,null,{"$f":"IF(ISNA(HLOOKUP(H13,$L$8:$N$9,2,FALSE))=TRUE,\"\",HLOOKUP(H13,$L$8:$N$9,2,FALSE))","v":""}]
[null,null,null,"④","本人にとってわかりやすい言葉や表現で書かれている","全ての項目\n（特に、2-1①～③、2-2①②⑤）",null,null,null,null,{"$f":"IF(ISNA(HLOOKUP(H14,$L$8:$N$9,2,FALSE))=TRUE,\"\",HLOOKUP(H14,$L$8:$N$9,2,FALSE))","v":""}]
[null,null,null,"⑤","希望する生活に向けて、少しずつ段階的に近づくように目標が書かれている","2-1①②\n2-2①②③⑤⑥\n2-3①～③",null,null,null,null,{"$f":"IF(ISNA(HLOOKUP(H15,$L$8:$N$9,2,FALSE))=TRUE,\"\",HLOOKUP(H15,$L$8:$N$9,2,FALSE))","v":""}]
[null,2,"総合的な生活支援の視点",null,null,null,null,null,null,null,{"$f":"SUM(K17:K21)/ROWS(K17:K21)","v":0}]
[null,null,null,"①","本人が望む生活の全体像がわかりやすく書かれている","2-3③",null,null,null,null,{"$f":"IF(ISNA(HLOOKUP(H17,$L$8:$N$9,2,FALSE))=TRUE,\"\",HLOOKUP(H17,$L$8:$N$9,2,FALSE))","v":""}]
[null,null,null,"②","障害福祉サービスを使うこと(サービスの支給決定)だけを目的とした計画ではなく、本人の希望を実現するための課題も書かれている","2-2④\n2-3①②",null,null,null,null,{"$f":"IF(ISNA(HLOOKUP(H18,$L$8:$N$9,2,FALSE))=TRUE,\"\",HLOOKUP(H18,$L$8:$N$9,2,FALSE))","v":""}]
[null,null,null,"③","医療、教育、司法等の領域のサービスやインフォーマルなサービス等も書かれている","2-2④⑥\n2-3①②",null,null,null,null,{"$f":"IF(ISNA(HLOOKUP(H19,$L$8:$N$9,2,FALSE))=TRUE,\"\",HLOOKUP(H19,$L$8:$N$9,2,FALSE))","v":""}]
[null,null,null,"④","本人が望む一週間及び一日の生活に必要なサービス等が網羅され、具体的にイメージできるように書かれている","2-3全ての項目",null,null,null,null,{"$f":"IF(ISNA(HLOOKUP(H20,$L$8:$N$9,2,FALSE))=TRUE,\"\",HLOOKUP(H20,$L$8:$N$9,2,FALSE))","v":""}]
[null,null,null,"⑤","就学や就労など次のステージへ切れ目がないよう、これまでの支援方針や関連する個別の計画が活かされて、将来に向けて総合的に書かれている","2-1全ての項目",null,null,null,null,{"$f":"IF(ISNA(HLOOKUP(H21,$L$8:$N$9,2,FALSE))=TRUE,\"\",HLOOKUP(H21,$L$8:$N$9,2,FALSE))","v":""}]
[null,3,"連携・チーム支援の視点",null,null,null,null,null,null,null,{"$f":"SUM(K23:K27)/ROWS(K23:K27)","v":0}]
[null,null,null,"①","関係機関が共通理解をもってチームで支援できるよう、その方向性が具体的に書かれている","2-1全ての項目\n2-2全ての項目",null,null,null,null,{"$f":"IF(ISNA(HLOOKUP(H23,$L$8:$N$9,2,FALSE))=TRUE,\"\",HLOOKUP(H23,$L$8:$N$9,2,FALSE))","v":""}]
[null,null,null,"②","相談支援専門員が課題を一人で抱え込まずに、チームで連携して対応できるよう関係機関の役割が具体的に書かれている","2-2④⑤⑥\n2-3①②",null,null,null,null,{"$f":"IF(ISNA(HLOOKUP(H24,$L$8:$N$9,2,FALSE))=TRUE,\"\",HLOOKUP(H24,$L$8:$N$9,2,FALSE))","v":""}]
[null,null,null,"③","個別支援計画の参考になるように、基礎情報、支援ののポイント、関係機関へのメッセージが具体的に書かれている","2-1全ての項目\n2-2全ての項目\n3全ての項目",null,null,null,null,{"$f":"IF(ISNA(HLOOKUP(H25,$L$8:$N$9,2,FALSE))=TRUE,\"\",HLOOKUP(H25,$L$8:$N$9,2,FALSE))","v":""}]
[null,null,null,"④","関係機関の支援内容、頻度、意見について、具体的に聞き取ったことが書かれている","3①②④",null,null,null,null,{"$f":"IF(ISNA(HLOOKUP(H26,$L$8:$N$9,2,FALSE))=TRUE,\"\",HLOOKUP(H26,$L$8:$N$9,2,FALSE))","v":""}]
[null,null,null,"⑤","本人の生活に関わる地域の関係者(近隣住民、お店など)や自立支援協議会関係者を把握し、普段の様子を聞き取って、それが書かれている","2-2④⑥、2-3②\n3②④",null,null,null,null,{"$f":"IF(ISNA(HLOOKUP(H27,$L$8:$N$9,2,FALSE))=TRUE,\"\",HLOOKUP(H27,$L$8:$N$9,2,FALSE))","v":""}]
[null,4,"ニーズに基づく支援の視点",null,null,null,null,null,null,null,{"$f":"SUM(K29:K33)/ROWS(K29:K33)","v":0}]
[null,null,null,"①","本人の希望する事が「～したい」といった本人の言葉で具体的に書かれている。また本人の思いをしっかり汲み取り、本人が取り組みたい課題から優先するように書かれている","2-1全ての項目\n2-2①⑤",null,null,null,null,{"$f":"IF(ISNA(HLOOKUP(H29,$L$8:$N$9,2,FALSE))=TRUE,\"\",HLOOKUP(H29,$L$8:$N$9,2,FALSE))","v":""}]
[null,null,null,"②","家族の意向を具体的に把握し、本人の思いと区別して、誰の意向かわかるように書かれている","2-1全ての項目\n2-2①②⑤⑥",null,null,null,null,{"$f":"IF(ISNA(HLOOKUP(H30,$L$8:$N$9,2,FALSE))=TRUE,\"\",HLOOKUP(H30,$L$8:$N$9,2,FALSE))","v":""}]
[null,null,null,"③","課題に対して本人の意欲や緊急性、即効性、重要性、専門性等を考慮して、まず取り組むべき事項から適切に優先順位がつけられている","2-1②\n2-2①②③⑥",null,null,null,null,{"$f":"IF(ISNA(HLOOKUP(H31,$L$8:$N$9,2,FALSE))=TRUE,\"\",HLOOKUP(H31,$L$8:$N$9,2,FALSE))","v":""}]
[null,null,null,"④","本人のニーズに基づいて、支援目標、サービス種類、評価時期などの項目が一連の流れの中で整合性をもって書かれている","2-2全ての項目",null,null,null,null,{"$f":"IF(ISNA(HLOOKUP(H32,$L$8:$N$9,2,FALSE))=TRUE,\"\",HLOOKUP(H32,$L$8:$N$9,2,FALSE))","v":""}]
[null,null,null,"⑤","本人の要望だけ、あるいは支援者側の一方的な提案だけの記載ではなく、相談支援専門員としての総合的判断（見立て）と本人のニーズが一致した内容、または一致していない場合はその調整結果が書かれている。","2-1全ての項目\n2-2①②⑤\n2-3③",null,null,null,null,{"$f":"IF(ISNA(HLOOKUP(H33,$L$8:$N$9,2,FALSE))=TRUE,\"\",HLOOKUP(H33,$L$8:$N$9,2,FALSE))","v":""}]
[null,5,"中立・公平性の視点",null,null,null,null,null,null,null,{"$f":"SUM(K35:K39)/ROWS(K35:K39)","v":0}]
[null,null,null,"①","サービス提供法人が特定の法人（特に相談支援事業所の法人）に偏っていない、または偏っている場合は、その理由が具体的に書かれている。","2-2④\n2-3①②",null,null,null,null,{"$f":"IF(ISNA(HLOOKUP(H35,$L$8:$N$9,2,FALSE))=TRUE,\"\",HLOOKUP(H35,$L$8:$N$9,2,FALSE))","v":""}]
[null,null,null,"②","本人のニーズや生活実態に合わせた適正な計画であり、支援やサービスが過不足なく書かれている","2-1全ての項目\n2-2①④、2-3①②",null,null,null,null,{"$f":"IF(ISNA(HLOOKUP(H36,$L$8:$N$9,2,FALSE))=TRUE,\"\",HLOOKUP(H36,$L$8:$N$9,2,FALSE))","v":""}]
[null,null,null,"③","同じような状態像、年齢、生活状況の障がい者と比較しても適正な計画であり、本人に必要な支援やサービスが過不足なく書かれている。","2-2②③④\n2-3①②",null,null,null,null,{"$f":"IF(ISNA(HLOOKUP(H37,$L$8:$N$9,2,FALSE))=TRUE,\"\",HLOOKUP(H37,$L$8:$N$9,2,FALSE))","v":""}]
[null,null,null,"④","本人のニーズや生活実態に合わせて地域資源を活用し、既存のサービスの継続利用だけではなく、選択可能な地域資源を把握した上で、計画が書かれている","2-2④⑥、2-3①②\n3④",null,null,null,null,{"$f":"IF(ISNA(HLOOKUP(H38,$L$8:$N$9,2,FALSE))=TRUE,\"\",HLOOKUP(H38,$L$8:$N$9,2,FALSE))","v":""}]
[null,null,null,"⑤","行政の支給審査基準も確認した上で、本人のニーズに基づいて必要なサービス量が書かれている","2-2④、2-3①②、3④",null,null,null,null,{"$f":"IF(ISNA(HLOOKUP(H39,$L$8:$N$9,2,FALSE))=TRUE,\"\",HLOOKUP(H39,$L$8:$N$9,2,FALSE))","v":""}]
[null,6,"生活の質の向上の視点",null,null,null,null,null,null,null,{"$f":"SUM(K41:K45)/ROWS(K41:K45)","v":0}]
[null,null,null,"①","サービス提供事業所からサービス提供状況や本人の生活の変化等について聴き取り、その内容とそれは「いつ」「誰に」「どのように」聴き取ったかを含めて記載している。","3②④",null,null,null,null,{"$f":"IF(ISNA(HLOOKUP(H41,$L$8:$N$9,2,FALSE))=TRUE,\"\",HLOOKUP(H41,$L$8:$N$9,2,FALSE))","v":""}]
[null,null,null,"②","本人からサービス内容や事業所等についての満足度や改善してほしいことがないか聴き取り、その内容とそれは「いつ」「誰に」「どのよう」に聴き取ったかを含めて記載している。","3③④",null,null,null,null,{"$f":"IF(ISNA(HLOOKUP(H42,$L$8:$N$9,2,FALSE))=TRUE,\"\",HLOOKUP(H42,$L$8:$N$9,2,FALSE))","v":""}]
[null,null,null,"③","計画通りにサービスが提供されたか、また目標の状態にどの程度まで近づいたかを「いつ」「誰と」「どのように」検討したかを含めて記載している。","3①④",null,null,null,null,{"$f":"IF(ISNA(HLOOKUP(H43,$L$8:$N$9,2,FALSE))=TRUE,\"\",HLOOKUP(H43,$L$8:$N$9,2,FALSE))","v":""}]
[null,null,null,"④","本人ニーズやライフステージ等に変化がないか確認した上で、未達成の目標や新たな課題への対応、必要に応じた計画変更理由やその内容について、「いつ」「誰と」「どのように」検討したかを含めて記載している。","3①④",null,null,null,null,{"$f":"IF(ISNA(HLOOKUP(H44,$L$8:$N$9,2,FALSE))=TRUE,\"\",HLOOKUP(H44,$L$8:$N$9,2,FALSE))","v":""}]
[null,null,null,"⑤","モニタリングやサービス担当者会議等を踏まえた総合的判断を反映し、全体の状況を把握した上で、今後の方向性を具体的に記載している。","3①",null,null,null,null,{"$f":"IF(ISNA(HLOOKUP(H45,$L$8:$N$9,2,FALSE))=TRUE,\"\",HLOOKUP(H45,$L$8:$N$9,2,FALSE))","v":""}]

{"sheet":"簡易チェック結果シート","index":4,"n_rows":39,"n_cols":5,"rows_kept":39,"cut":false,"hidden":false,"merged":[]}
["サービス等利用計画評価表"]
[]
["利用者氏名：",null,{"$error":"#REF!"}]
["計画作成者：",null,0]
["チェック機関：",null,0]
["評価日：",null,0]
[]
[null,null,null,"満点","チェック結果"]
[1,"エンパワメント、アドボカシーの視点",null,5,{"$f":"D9*簡易チェックシート!K10","v":0}]
[2,"総合的な生活支援の視点",null,5,{"$f":"D10*簡易チェックシート!K16","v":0}]
[3,"連携・チーム支援の視点",null,5,{"$f":"D11*簡易チェックシート!K22","v":0}]
[4,"ニーズに基づく支援の視点",null,5,{"$f":"D12*簡易チェックシート!K28","v":0}]
[5,"中立・公平性の視点",null,5,{"$f":"D13*簡易チェックシート!K34","v":0}]
[6,"生活の質の向上の視点",null,5,{"$f":"D14*簡易チェックシート!K40","v":0}]
[]
[]
[]
[]
[]
[]
[]
[]
[]
[]
[]
[]
[]
[]
[]
[]
[]
[]
[null,null,null,"本番リンク"]
[null,null,"Ⅰ.個別ケース対応"]
[null,null,"Ⅱ.地域デザイン"]
[null,null,"Ⅲ.事業所運営"]
[null,null,"Ⅰ-1インテーク",{"$f":"E9","v":0}]
[null,null,"Ⅰ-2アセスメント",{"$f":"E10","v":0}]
[null,null,"Ⅰ-3個別支援会議の\n開催",{"$f":"E11","v":0}]

{"sheet":"様式2-1チェック箇所","index":5,"n_rows":28,"n_cols":47,"rows_kept":28,"cut":false,"hidden":false,"merged":[[3,43,3,52],[4,5,4,14],[4,15,5,17],[4,18,5,20],[4,21,5,24],[4,25,5,28],[5,30,5,37],[5,38,5,44],[5,45,5,47],[5,48,5,52],[0,0,0,10],[1,0,1,51],[3,23,3,25],[3,26,3,34],[3,35,3,42],[4,29,5,29],[4,30,4,37],[4,38,4,52],[5,0,5,4],[5,5,5,14],[4,0,4,4],[8,0,8,3],[8,4,8,14],[8,15,8,18],[9,0,10,3],[9,4,9,10],[9,11,9,17],[9,18,9,24],[9,25,9,31],[9,32,9,38],[9,39,9,45],[9,46,9,52],[10,4,10,10],[10,11,10,17],[10,18,10,24],[10,25,10,31],[10,32,10,38],[10,39,10,45],[10,46,10,52],[12,0,12,17],[13,0,14,5],[15,0,16,5],[17,1,18,5],[19,1,20,5],[25,29,25,36],[25,37,25,44],[25,45,25,52],[22,0,22,21],[22,29,22,52],[23,0,23,9],[23,10,23,27],[23,29,23,36],[23,37,23,44],[23,45,23,52],[27,28,29,34],[27,35,29,41],[27,42,29,45],[27,46,29,48],[27,49,29,52],[24,0,24,9],[24,10,24,27],[24,29,24,36],[24,37,24,44],[24,45,24,52]]}
[]
["サービス等利用計画・障害児支援利用計画（計画様式２－１）"]
[]
[null,null,null,null,null,null,null,null,null,null,null,null,null,null,null,null,null,null,null,null,null,null,null,"作成日",null,null,"令和　　年　　月　　日",null,null,null,null,null,null,null,null,"利用者同意署名欄"]
["利用者氏名",null,null,null,null,null,null,null,null,null,null,null,null,null,null,"障害支援\n区分",null,null,null,null,null,"利用者負担上限額",null,null,null,null,null,null,null,"円","相談支援事業者名"]
["受給者番号",null,null,null,null,null,null,null,null,null,null,null,null,null,null,null,null,null,null,null,null,null,null,null,null,null,null,null,null,null,"計画作成担当者名",null,null,null,null,null,null,null,null,null,null,null,null,null,null,"電話"]
[]
["◎サービス担当者会議（会議を開催していない場合は、専門的意見を聴取した事業者名称と担当者名を記入します）"]
["会議実施日",null,null,null,"令和　　年　　月　　日"]
["会議出席者",null,null,null,"事業者等名称"]
[null,null,null,null,"担当者名"]
[]
["◎生活に対する意向、援助方針"]
["利用者及びその家族の生活に対する意向"]
[]
["総合的な援助の方針"]
[]
[null,"長期目標"]
[]
[null,"短期目標"]
[]
[]
["◎モニタリングの期間",null,null,null,null,null,null,null,null,null,null,null,null,null,null,null,null,null,null,null,null,null,null,null,null,null,null,null,null,"◎モニタリング実施月（毎月実施しない場合、実施月を記入）"]
["　□毎月実施",null,null,null,null,null,null,null,null,null,"　令和　　年　　月～令和　　　年　　　月まで",null,null,null,null,null,null,null,null,null,null,null,null,null,null,null,null,null,null,"令和　　年　　月",null,null,null,null,null,null,null,"令和　　年　　月",null,null,null,null,null,null,null,"令和　　年　　月"]
["　□　　月ごとに１回実施",null,null,null,null,null,null,null,null,null,"　令和　　年　　月～令和　　　年　　　月まで",null,null,null,null,null,null,null,null,null,null,null,null,null,null,null,null,null,null,"令和　　年　　月",null,null,null,null,null,null,null,"令和　　年　　月",null,null,null,null,null,null,null,"令和　　年　　月"]
[null,null,null,null,null,null,null,null,null,null,null,null,null,null,null,null,null,null,null,null,null,null,null,null,null,null,null,null,null,"令和　　年　　月",null,null,null,null,null,null,null,"令和　　年　　月",null,null,null,null,null,null,null,"令和　　年　　月"]
[]
[null,null,null,null,null,null,null,null,null,null,null,null,null,null,null,null,null,null,null,null,null,null,null,null,null,null,null,null,"区保健福祉部受理日",null,null,null,null,null,null,"令和　年　月　日",null,null,null,null,null,null,"福祉支援　　保健支援　　",null,null,null,"担当者"]

{"sheet":"様式2-2チェック箇所","index":6,"n_rows":9,"n_cols":48,"rows_kept":9,"cut":false,"hidden":false,"merged":[[3,35,3,42],[3,43,3,46],[3,47,3,54],[4,0,5,0],[6,0,7,0],[8,0,9,0],[0,0,0,54],[0,55,0,109],[2,0,2,34],[3,1,3,8],[3,9,3,16],[3,17,3,20],[3,21,3,28],[3,29,3,34]]}
["サービス等利用計画・障害児支援利用計画（計画様式２－２）"]
[]
["◎解決すべき課題、提供される福祉サービス等の目標及びその達成時期など"]
["優先\n順位","解決すべき課題・本人のニーズ",null,null,null,null,null,null,null,"支援目標",null,null,null,null,null,null,null,"達成時期",null,null,null,"福祉サービス等の種類、内容、量",null,null,null,null,null,null,null,"提供事業者名\n（担当者名・電話）",null,null,null,null,null,"課題解決のための本人の役割",null,null,null,null,null,null,null,"評価時期",null,null,null,"その他留意事項"]
[1]
[]
[2]
[]
[3]

{"sheet":"様式2-3チェック箇所","index":7,"n_rows":56,"n_cols":46,"rows_kept":56,"cut":false,"hidden":false,"merged":[[0,0,0,51],[1,0,1,5],[2,3,4,8],[2,9,4,14],[2,15,4,20],[2,21,4,26],[2,27,4,32],[2,33,4,38],[2,39,4,44],[2,45,4,49],[4,0,5,2],[5,3,6,8],[5,9,6,14],[5,15,6,20],[5,21,6,26],[5,27,6,32],[5,33,6,38],[5,39,6,44],[5,45,6,49],[6,0,7,2],[7,3,8,8],[7,9,8,14],[7,15,8,20],[7,21,8,26],[7,27,8,32],[7,33,8,38],[7,39,8,44],[7,45,8,49],[8,0,9,2],[9,3,10,8],[9,9,10,14],[9,15,10,20],[9,21,10,26],[9,27,10,32],[9,33,10,38],[9,39,10,44],[9,45,10,49],[10,0,11,2],[11,3,12,8],[11,9,12,14],[11,15,12,20],[11,21,12,26],[11,27,12,32],[11,33,12,38],[11,39,12,44],[11,45,12,49],[12,0,13,2],[13,3,14,8],[13,9,14,14],[13,15,14,20],[13,21,14,26],[13,27,14,32],[13,33,14,38],[13,39,14,44],[13,45,14,49],[14,0,15,2],[15,3,16,8],[15,9,16,14],[15,15,16,20],[15,21,16,26],[15,27,16,32],[15,33,16,38],[15,39,16,44],[15,45,16,49],[16,0,17,2],[17,3,18,8],[17,9,18,14],[17,15,18,20],[17,21,18,26],[17,27,18,32],[17,33,18,38],[17,39,18,44],[17,45,18,49],[18,0,19,2],[19,3,20,8],[19,9,20,14],[19,15,20,20],[19,21,20,26],[19,27,20,32],[19,33,20,38],[19,39,20,44],[19,45,20,49],[20,0,21,2],[21,3,22,8],[21,9,22,14],[21,15,22,20],[21,21,22,26],[21,27,22,32],[21,33,22,38],[21,39,22,44],[21,45,22,49],[22,0,23,2],[23,3,24,8],[23,9,24,14],[23,15,24,20],[23,21,24,26],[23,27,24,32],[23,33,24,38],[23,39,24,44],[23,45,24,49],[24,0,25,2],[25,3,26,8],[25,9,26,14],[25,15,26,20],[25,21,26,26],[25,27,26,32],[25,33,26,38],[25,39,26,44],[25,45,26,49],[26,0,27,2],[27,3,28,8],[27,9,28,14],[27,15,28,20],[27,21,28,26],[27,27,28,32],[27,33,28,38],[27,39,28,44],[27,45,28,49],[28,0,29,2],[29,3,30,8],[29,9,30,14],[29,15,30,20],[29,21,30,26],[29,27,30,32],[29,33,30,38],[29,39,30,44],[29,45,30,49],[30,0,31,2],[31,3,32,8],[31,9,32,14],[31,15,32,20],[31,21,32,26],[31,27,32,32],[31,33,32,38],[31,39,32,44],[31,45,32,49],[32,0,33,2],[33,3,34,8],[33,9,34,14],[33,15,34,20],[33,21,34,26],[33,27,34,32],[33,33,34,38],[33,39,34,44],[33,45,34,49],[34,0,35,2],[35,3,36,8],[35,9,36,14],[35,15,36,20],[35,21,36,26],[35,27,36,32],[35,33,36,38],[35,39,36,44],[35,45,36,49],[36,0,37,2],[37,3,38,8],[37,9,38,14],[37,15,38,20],[37,21,38,26],[37,27,38,32],[37,33,38,38],[37,39,38,44],[37,45,38,49],[38,0,39,2],[39,3,40,8],[39,9,40,14],[39,15,40,20],[39,21,40,26],[39,27,40,32],[39,33,40,38],[39,39,40,44],[39,45,40,49],[40,0,41,2],[41,3,42,8],[41,9,42,14],[41,15,42,20],[41,21,42,26],[41,27,42,32],[41,33,42,38],[41,39,42,44],[41,45,42,49],[42,0,43,2],[43,3,44,8],[43,9,44,14],[43,15,44,20],[43,21,44,26],[43,27,44,32],[43,33,44,38],[43,39,44,44],[43,45,44,49],[44,0,45,2],[45,3,46,8],[45,9,46,14],[45,15,46,20],[45,21,46,26],[45,27,46,32],[45,33,46,38],[45,39,46,44],[45,45,46,49],[46,0,47,2],[47,3,48,8],[47,9,48,14],[47,15,48,20],[47,21,48,26],[47,27,48,32],[47,33,48,38],[48,0,49,2],[49,3,50,8],[49,9,50,14],[49,15,50,20],[49,21,50,26],[49,27,50,32],[51,27,52,32],[51,33,52,38],[51,39,52,44],[51,45,52,49],[47,39,48,44],[47,45,48,49],[49,33,50,38],[49,39,50,44],[52,0,53,2],[53,3,54,8],[55,0,57,9],[55,10,57,49],[49,45,50,49],[50,0,51,2],[51,3,52,8],[51,9,52,14],[51,15,52,20],[51,21,52,26]]}
["サービス等利用計画・障害児支援利用計画（計画様式２－３）"]
["◎週間計画表"]
[null,null,null,"月",null,null,null,null,null,"火",null,null,null,null,null,"水",null,null,null,null,null,"木",null,null,null,null,null,"金",null,null,null,null,null,"土",null,null,null,null,null,"日",null,null,null,null,null,"主な日常生活上の行動"]
[]
["04:00:00"]
[]
["05:00:00"]
[]
["06:00:00"]
[]
["07:00:00"]
[]
["08:00:00"]
[]
["09:00:00"]
[]
["10:00:00"]
[]
["11:00:00"]
[]
["12:00:00"]
[]
["13:00:00"]
[]
["14:00:00"]
[]
["15:00:00"]
[]
["16:00:00"]
[null,null,null,null,null,null,null,null,null,null,null,null,null,null,null,null,null,null,null,null,null,null,null,null,null,null,null,null,null,null,null,null,null,null,null,null,null,null,null,null,null,null,null,null,null,"週単位以外のサービス"]
["17:00:00"]
[]
["18:00:00"]
[]
["19:00:00"]
[]
["20:00:00"]
[]
["21:00:00"]
[]
["22:00:00"]
[]
["23:00:00"]
[]
[1]
[]
[1.0416666666666701]
[]
[1.0833333333333299]
[]
[1.125]
[]
[1.1666666666666701]
[]
[]
["サービス提供によって実現する生活の全体像"]

{"sheet":"様式3チェック箇所","index":8,"n_rows":17,"n_cols":47,"rows_kept":17,"cut":false,"hidden":false,"merged":[[3,26,3,34],[3,35,3,42],[3,43,3,53],[4,5,4,14],[4,15,5,17],[4,18,5,20],[4,21,5,24],[4,25,5,28],[5,30,5,37],[5,38,5,44],[0,0,0,10],[1,0,1,50],[3,6,3,13],[3,14,3,22],[3,23,3,25],[4,29,5,29],[4,30,4,37],[4,38,4,53],[5,0,5,4],[5,5,5,14],[5,45,5,47],[5,48,5,53],[4,0,4,4],[7,0,7,26],[7,27,7,53],[8,0,8,26],[8,27,8,53],[10,0,11,0],[10,1,11,6],[10,7,11,9],[10,10,11,15],[10,16,11,22],[10,23,11,29],[10,30,11,36],[10,37,10,45],[10,46,11,53],[11,37,11,39],[11,40,11,42],[11,43,11,45],[12,1,12,6],[12,7,12,9],[12,10,12,15],[12,16,12,22],[12,23,12,29],[12,30,12,36],[12,37,12,39],[12,40,12,42],[12,43,12,45],[12,46,12,53],[13,1,13,6],[13,7,13,9],[13,10,13,15],[13,16,13,22],[13,23,13,29],[13,30,13,36],[13,37,13,39],[13,40,13,42],[13,43,13,45],[13,46,13,53],[14,1,14,6],[14,7,14,9],[14,10,14,15],[14,16,14,22],[14,23,14,29],[14,30,14,36],[14,37,14,39],[14,40,14,42],[14,43,14,45],[14,46,14,53],[16,28,18,34],[16,35,18,41],[16,42,18,45],[16,46,18,48],[16,49,18,52]]}
[]
["モニタリング報告書（継続サービス利用支援・継続障害児支援利用援助）　（計画様式３）"]
[]
[null,null,null,null,null,null,"モニタリング実施日",null,null,null,null,null,null,null,"令和　　年　　月　　日",null,null,null,null,null,null,null,null,"作成日",null,null,"令和　　年　　月　　日",null,null,null,null,null,null,null,null,"利用者同意署名欄"]
["利用者氏名",null,null,null,null,null,null,null,null,null,null,null,null,null,null,"障害支援\n区分",null,null,null,null,null,"利用者負担上限額",null,null,null,null,null,null,null,"円","相談支援事業者名"]
["受給者番号",null,null,null,null,null,null,null,null,null,null,null,null,null,null,null,null,null,null,null,null,null,null,null,null,null,null,null,null,null,"計画作成担当者名",null,null,null,null,null,null,null,null,null,null,null,null,null,null,"電話"]
[]
["総合的な援助の方針",null,null,null,null,null,null,null,null,null,null,null,null,null,null,null,null,null,null,null,null,null,null,null,null,null,null,"全体の状況"]
[]
[]
["優先\n順位","支援目標",null,null,null,null,null,"達成\n時期",null,null,"サービス提供状況\n（事業者からの聞き取り）",null,null,null,null,null,"本人の感想・満足度",null,null,null,null,null,null,"支援目標の達成度\n（ニーズの充足度）",null,null,null,null,null,null,"今後の課題・\n解決方法",null,null,null,null,null,null,"計画変更の必要性",null,null,null,null,null,null,null,null,"その他留意事項"]
[null,null,null,null,null,null,null,null,null,null,null,null,null,null,null,null,null,null,null,null,null,null,null,null,null,null,null,null,null,null,null,null,null,null,null,null,null,"サービス\n種類の変更",null,null,"サービス\n量の変更",null,null,"週間計画\nの変更"]
[1,null,null,null,null,null,null,null,null,null,null,null,null,null,null,null,null,null,null,null,null,null,null,null,null,null,null,null,null,null,null,null,null,null,null,null,null,"有・無",null,null,"有・無",null,null,"有・無"]
[2,null,null,null,null,null,null,null,null,null,null,null,null,null,null,null,null,null,null,null,null,null,null,null,null,null,null,null,null,null,null,null,null,null,null,null,null,"有・無",null,null,"有・無",null,null,"有・無"]
[3,null,null,null,null,null,null,null,null,null,null,null,null,null,null,null,null,null,null,null,null,null,null,null,null,null,null,null,null,null,null,null,null,null,null,null,null,"有・無",null,null,"有・無",null,null,"有・無"]
[]
[null,null,null,null,null,null,null,null,null,null,null,null,null,null,null,null,null,null,null,null,null,null,null,null,null,null,null,null,"区保健福祉部受理日",null,null,null,null,null,null,"令和　年　月　日",null,null,null,null,null,null,"福祉支援　　保健支援　　",null,null,null,"担当者"]